fUST/lending_fUST_20250915
["ID","MTS","AMOUNT","RATE_DAILY","PERIOD"]
[385468262,1757875843574,-1187.35,0.00023287,3]
[385468264,1757875843585,-501.46,0.00023287,3]
[385468266,1757875843595,-723.7,0.00023287,3]
[385468268,1757875843604,-480.0,0.00023287,3]
[385468270,1757875843613,-480.0,0.00023287,3]
[385468272,1757875843623,-507.78,0.00023287,3]
[385468274,1757875843632,-480.0,0.00023287,3]
[385468276,1757875843641,-480.0,0.00023287,3]
[385468278,1757875843651,-480.0,0.00023287,3]
[385468280,1757875843660,-688.94,0.00023287,3]
[385468282,1757875843670,-748.23,0.00023287,3]
[385468284,1757875843679,-647.32,0.00023287,3]
[385468286,1757875843689,-760.99,0.00023287,3]
[385468288,1757875843698,-480.0,0.00023287,3]
[385468290,1757875843708,-752.72,0.00023287,3]
[385468292,1757875843717,-1323.82,0.00023287,3]
[385468294,1757875843726,-18477.26,0.00023287,3]
[385468296,1757875843735,-500.0,0.00023287,2]
[385468298,1757875843745,-226.56197698,0.00023287,3]
[385468300,1757875843754,-661.87,0.00023287,3]
[385468302,1757875843764,-5184.45,0.00023287,3]
[385468304,1757875843773,-1075.83,0.00023287,3]
[385468306,1757875843782,-480.0,0.00023287,3]
[385468308,1757875843792,-1145.91,0.00023287,3]
[385468310,1757875843801,-3187.56,0.00023287,3]
[385468312,1757875843810,-2196.52,0.00023287,3]
[385468314,1757875843820,-480.0,0.00023287,3]
[385468316,1757875843829,-480.0,0.00023287,3]
[385468318,1757875843840,-480.0,0.00023287,3]
[385468320,1757875843850,-600.99,0.00023287,3]
[385468322,1757875843860,-486.05,0.00023287,3]
[385468324,1757875843869,-782.37,0.00023287,3]
[385468326,1757875843879,-1192.55,0.00023287,3]
[385468328,1757875843888,-409.28956332,0.00023287,2]
[385468330,1757875843898,-1915.39,0.00023287,3]
[385468332,1757875843908,-480.0,0.00023287,3]
[385468334,1757875843919,-930.55,0.00023287,3]
[385468336,1757875843929,-1182.58,0.00023287,3]
[385468338,1757875843938,-245.18522765,0.00023287,3]
[385468340,1757875843947,-977.32,0.00023287,3]
[385468342,1757875843956,-1761.11,0.00023287,3]
[385468344,1757875843965,-480.0,0.00023287,3]
[385468346,1757875843974,-480.0,0.00023287,3]
[385468348,1757875843984,-2308.49,0.00023287,3]
[385468350,1757875843993,-480.0,0.00023287,3]
[385468352,1757875844003,-2477.98,0.00023287,3]
[385468354,1757875844012,-480.0,0.00023287,3]
[385468356,1757875844021,-532.92,0.00023287,3]
[385468358,1757875844030,-619.39,0.00023287,3]
[385468360,1757875844039,-480.0,0.00023287,3]
[385468362,1757875844048,-3200.87,0.00023287,3]
[385468364,1757875844058,-480.0,0.00023287,3]
[385468366,1757875844067,-425.69552133,0.00023287,3]
[385468368,1757875844076,-742.0,0.00023287,3]
[385468370,1757875844086,-5418.24,0.00023287,3]
[385468372,1757875844095,-10831.61,0.00023287,3]
[385468374,1757875844104,-480.0,0.00023287,3]
[385468376,1757875844114,-990.4,0.00023287,3]
[385468378,1757875844123,-980.6,0.00023287,3]
[385468380,1757875844133,-2118.12,0.00023287,3]
[385468382,1757875844143,-648.48,0.00023287,3]
[385468384,1757875844152,-480.0,0.00023287,3]
[385468386,1757875844162,-1753.61,0.00023287,3]
[385468388,1757875844172,-2217.39,0.00023287,3]
[385468390,1757875844182,-723.24,0.00023287,3]
[385468392,1757875844191,-624.0,0.00023287,3]
[385468394,1757875844200,-873.86,0.00023287,3]
[385468396,1757875844211,-756.36,0.00023287,3]
[385468398,1757875844220,-1061.69,0.00023287,3]
[385468400,1757875844230,-620.9,0.00023287,3]
[385468402,1757875844240,-489.84,0.00023287,3]
[385468404,1757875844249,-1209.86,0.00023287,3]
[385468406,1757875844258,-1819.51,0.00023287,3]
[385468408,1757875844267,-1462.4,0.00023287,3]
[385468410,1757875844276,-480.0,0.00023287,3]
[385468412,1757875844285,-1835.64,0.00023287,3]
[385468414,1757875844295,-2174.04,0.00023287,3]
[385468416,1757875844303,-4330.89,0.00023287,3]
[385468419,1757875844314,-830.38,0.00023287,3]
[385468421,1757875844324,-480.0,0.00023287,3]
[385468423,1757875844333,-480.0,0.00023287,3]
[385468425,1757875844342,-1004.76,0.00023287,3]
[385468427,1757875844352,-883.33,0.00023287,3]
[385468429,1757875844361,-931.23,0.00023287,3]
[385468431,1757875844370,-865.96,0.00023287,3]
[385468433,1757875844379,-480.0,0.00023287,3]
[385468435,1757875844388,-576.88,0.00023287,3]
[385468437,1757875844398,-619.75,0.00023287,3]
[385468439,1757875844407,-480.0,0.00023287,3]
[385468441,1757875844416,-1428.65,0.00023287,3]
[385468443,1757875844426,-807.89,0.00023287,3]
[385468445,1757875844435,-480.0,0.00023287,3]
[385468447,1757875844445,-480.0,0.00023287,3]
[385468449,1757875844454,-480.0,0.00023287,3]
[385468451,1757875844464,-588.34,0.00023287,3]
[385468453,1757875844473,-644.02,0.00023287,3]
[385468455,1757875844483,-3074.05,0.00023287,3]
[385468457,1757875844492,-594.77,0.00023287,3]
[385468459,1757875844501,-480.0,0.00023287,3]
[385468461,1757875844510,-933.74,0.00023287,3]
[385468463,1757875844519,-188.5479816,0.00023288,2]
[385468465,1757875844528,-188.5479816,0.00023288,2]
[385468467,1757875844537,-188.5479816,0.00023288,2]
[385468469,1757875844547,-188.5479816,0.00023288,2]
[385468471,1757875844556,-188.5479816,0.00023288,2]
[385468473,1757875844565,-188.5479816,0.00023288,2]
[385468475,1757875844574,-188.5479816,0.00023288,2]
[385468477,1757875844587,-188.5479816,0.00023288,2]
[385468479,1757875844597,-377.0959632,0.00023288,2]
[385468481,1757875844607,-377.0959632,0.00023288,2]
[385468483,1757875844616,-372.4365851,0.00023288,2]
[385468485,1757875844625,-420.0,0.00023307,2]
[385468487,1757875844635,-260.0,0.00023315,2]
[385468488,1757875844644,-1466.43127937,0.00023316,2]
[385468490,1757875844653,-2000.0,0.00023316,2]
[385468491,1757875844662,-2000.0,0.00023316,2]
[385468493,1757875844671,-2000.0,0.00023316,2]
[385468494,1757875844680,-524.57812727,0.00023316,2]
[385468496,1757875844690,-500.0,0.00023316,2]
[385468497,1757875844699,-1809.20890721,0.00023316,2]
[385468499,1757875844708,-11470.53815662,0.0002335,2]
[385468500,1757875844717,-151.0,0.00023367,3]
[385468502,1757875844726,-5888.0,0.00023368,2]
[385468503,1757875844736,-501.62793363,0.00023389,2]
[385468505,1757875844745,-200000.0,0.0002344,2]
[385468506,1757875844755,-336.0,0.0002345,2]
[385468508,1757875844764,-500.0,0.00023473,2]
[385468509,1757875844773,-500.0,0.00023473,2]
[385468511,1757875844783,-500.0,0.00023473,2]
[385468512,1757875844792,-500.0,0.00023473,2]
[385468514,1757875844801,-500.0,0.00023473,2]
[385468515,1757875844810,-500.0,0.00023473,2]
[385468517,1757875844819,-500.0,0.00023473,2]
[385468518,1757875844828,-500.0,0.00023473,2]
[385468520,1757875844837,-500.0,0.00023473,2]
[385468530,1757875844980,-150.0,0.00023473,2]
[385468531,1757875844990,-258.51054795,0.00023473,2]
[385468533,1757875845000,-500.0,0.00023473,2]
[385468535,1757875845011,-258.65708178,0.00023473,2]
[385468536,1757875845020,-501.73394212,0.00023473,2]
[385468538,1757875845030,-150.0,0.00023473,2]
[385468539,1757875845039,-160.73895533,0.00023473,2]
[385468541,1757875845050,-188.5479816,0.00023479,2]
[385468542,1757875845059,-188.5479816,0.00023479,2]
[385468544,1757875845069,-1500.0,0.000235,2]
[385468545,1757875845078,-1500.0,0.000235,2]
[385468547,1757875845088,-1500.0,0.000235,2]
[385468549,1757875845097,-1500.0,0.000235,2]
[385468550,1757875845106,-1500.0,0.000235,2]
[385468552,1757875845115,-1500.0,0.000235,2]
[385468553,1757875845124,-1441.96,0.000235,2]
[385468555,1757875845132,-400.0,0.000235,2]
[385468557,1757875845142,-1085.81,0.000235,7]
[385468558,1757875845151,-1000.0,0.000235,2]
[385468560,1757875845160,-800.0,0.00023505,2]
[385468561,1757875845169,-1245.0,0.00023561,2]
[385468563,1757875845179,-169.57383559,0.00023561,2]
[385468564,1757875845188,-659.2,0.00023561,3]
[385468566,1757875845197,-161.4658048,0.00023561,3]
[385468568,1757875845206,-800.9,0.00023561,3]
[385468569,1757875845215,-209.0,0.00023561,2]
[385468571,1757875845224,-209.0,0.00023561,2]
[385468572,1757875845234,-209.0,0.00023561,2]
[385468574,1757875845243,-209.0,0.00023561,2]
[385468576,1757875845252,-209.0,0.00023561,2]
[385468577,1757875845262,-209.0,0.00023561,2]
[385468579,1757875845271,-209.0,0.00023561,2]
[385468580,1757875845280,-209.0,0.00023561,2]
[385468582,1757875845289,-209.0,0.00023561,2]
[385468584,1757875845299,-209.0,0.00023561,2]
[385468585,1757875845308,-209.0,0.00023561,2]
[385468587,1757875845317,-480.0,0.00023561,3]
[385468588,1757875845327,-480.0,0.00023561,3]
[385468590,1757875845336,-480.0,0.00023561,3]
[385468592,1757875845344,-480.0,0.00023561,3]
[385468593,1757875845354,-480.0,0.00023561,3]
[385468595,1757875845363,-480.21,0.00023561,3]
[385468598,1757875845372,-480.0,0.00023561,3]
[385468601,1757875845381,-837.19,0.00023561,3]
[385468605,1757875845390,-843.87,0.00023561,3]
[385468608,1757875845399,-536.13,0.00023561,3]
[385468612,1757875845409,-543.25,0.00023561,3]
[385468615,1757875845418,-480.0,0.00023561,3]
[385468617,1757875845428,-481.47,0.00023561,3]
[385468620,1757875845437,-480.0,0.00023561,3]
[385468622,1757875845446,-480.0,0.00023561,3]
[385468625,1757875845455,-480.0,0.00023561,3]
[385468628,1757875845465,-480.0,0.00023561,3]
[385468630,1757875845475,-677.92,0.00023561,3]
[385468633,1757875845484,-686.25,0.00023561,3]
[385468635,1757875845493,-480.0,0.00023561,3]
[385468638,1757875845502,-549.03,0.00023561,3]
[385468640,1757875845511,-578.78,0.00023561,3]
[385468643,1757875845521,-480.0,0.00023561,3]
[385468645,1757875845530,-480.0,0.00023561,3]
[385468648,1757875845539,-957.49,0.00023561,3]
[385468650,1757875845548,-480.0,0.00023561,3]
[385468651,1757875845557,-1187.35,0.00023561,3]
[385468653,1757875845567,-501.46,0.00023561,3]
[385468655,1757875845577,-723.7,0.00023561,3]
[385468656,1757875845588,-284.82748106,0.00023561,3]
[385468658,1757875845597,-480.0,0.00023561,3]
[385468659,1757875845606,-507.78,0.00023561,3]
[385468661,1757875845616,-480.0,0.00023561,3]
[385468662,1757875845625,-480.0,0.00023561,3]
[385468664,1757875845634,-480.0,0.00023561,3]
[385468666,1757875845644,-688.94,0.00023561,3]
[385468667,1757875845653,-748.23,0.00023561,3]
[385468669,1757875845666,-151.0,0.00023561,3]
[385468671,1757875845676,-647.32,0.00023561,3]
[385468672,1757875845686,-760.99,0.00023561,3]
[385468674,1757875845696,-480.0,0.00023561,3]
[385468675,1757875845706,-752.72,0.00023561,3]
[385468677,1757875845720,-1323.82,0.00023561,3]
[385468678,1757875845729,-18477.26,0.00023561,3]
[385468680,1757875845739,-661.87,0.00023561,3]
[385468682,1757875845749,-5184.45,0.00023561,3]
[385468683,1757875845758,-1075.83,0.00023561,3]
[385468685,1757875845768,-480.0,0.00023561,3]
[385468686,1757875845777,-1145.91,0.00023561,3]
[385468688,1757875845786,-3187.56,0.00023561,3]
[385468690,1757875845796,-2196.52,0.00023561,3]
[385468691,1757875845805,-568.12903389,0.00023561,3]
[385468693,1757875845815,-480.0,0.00023561,3]
[385468694,1757875845825,-480.0,0.00023561,3]
[385468696,1757875845835,-600.99,0.00023561,3]
[385468698,1757875845845,-486.05,0.00023561,3]
[385468699,1757875845854,-782.37,0.00023561,3]
[385468701,1757875845864,-1192.55,0.00023561,3]
[385468703,1757875845873,-1915.39,0.00023561,3]
[385468704,1757875845883,-480.0,0.00023561,3]
[385468706,1757875845893,-1182.58,0.00023561,3]
[385468708,1757875845902,-930.55,0.00023561,3]
[385468709,1757875845912,-977.32,0.00023561,3]
[385468711,1757875845922,-1761.11,0.00023561,3]
[385468712,1757875845931,-480.0,0.00023561,3]
[385468714,1757875845940,-480.0,0.00023561,3]
[385468715,1757875845950,-2308.49,0.00023561,3]
[385468717,1757875845959,-480.0,0.00023561,3]
[385468719,1757875845969,-2477.98,0.00023561,3]
[385468720,1757875845978,-480.0,0.00023561,3]
[385468722,1757875845988,-532.92,0.00023561,3]
[385468724,1757875845997,-619.39,0.00023561,3]
[385468725,1757875846006,-480.0,0.00023561,3]
[385468727,1757875846016,-3200.87,0.00023561,3]
[385468729,1757875846025,-480.0,0.00023561,3]
[385468730,1757875846035,-742.0,0.00023561,3]
[385468732,1757875846044,-5418.24,0.00023561,3]
[385468733,1757875846053,-10831.61,0.00023561,3]
[385468735,1757875846063,-480.0,0.00023561,3]
[385468737,1757875846072,-990.4,0.00023561,3]
[385468738,1757875846081,-980.6,0.00023561,3]
[385468740,1757875846090,-2118.12,0.00023561,3]
[385468741,1757875846100,-648.48,0.00023561,3]
[385468743,1757875846109,-480.0,0.00023561,3]
[385468745,1757875846119,-200.0,0.00023561,2]
[385468746,1757875846128,-233.52,0.00023561,3]
[385468748,1757875846137,-1753.61,0.00023561,3]
[385468749,1757875846147,-2217.39,0.00023561,3]
[385468751,1757875846156,-723.24,0.00023561,3]
[385468753,1757875846166,-624.0,0.00023561,3]
[385468754,1757875846175,-873.86,0.00023561,3]
[385468756,1757875846184,-756.36,0.00023561,3]
[385468758,1757875846194,-1061.69,0.00023561,3]
[385468759,1757875846203,-620.9,0.00023561,3]
[385468761,1757875846213,-489.84,0.00023561,3]
[385468762,1757875846223,-1209.86,0.00023561,3]
[385468764,1757875846232,-1819.51,0.00023561,3]
[385468766,1757875846241,-1462.4,0.00023561,3]
[385468767,1757875846251,-480.0,0.00023561,3]
[385468769,1757875846261,-850.86128708,0.00023561,3]
[385468773,1757875846312,-568.41582122,0.00023561,3]
[385468775,1757875846323,-416.3628917,0.00023561,3]
[385468777,1757875846333,-1677.26267582,0.00023561,3]
[385469710,1757875856321,-265.62946839,0.00021127,2]
[385469749,1757875856698,-6672.73286997,0.0002134,2]
[385470448,1757875864249,-300.0,0.00021339,2]
[385470449,1757875864282,-9400.01,0.0002134,2]
[385470451,1757875864370,-10000.01,0.0002134,2]
[385470464,1757875864492,-10000.01,0.0002134,2]
[385471427,1757875874238,-265.62946839,0.00021127,2]
[385471432,1757875874277,-9468.75106322,0.0002134,2]
[385471439,1757875874351,-10000.01,0.0002134,2]
[385482806,1757875997858,2411.60441965,0.000199,2]
[385488381,1757876187717,2329.03696669,0.000199,2]
[385488397,1757876377381,2251.40240124,0.000199,2]
[385488398,1757876497340,431.24,0.00027397,120]
[385488399,1757876566212,2121.36962675,0.000199,2]
[385488402,1757876751025,886.59658567,0.000199,2]
[385488403,1757876751052,1164.06072014,0.000199,2]
[385488408,1757876890817,373.115659,0.0002012,2]
[385488409,1757876913547,373.115659,0.0002012,2]
[385488410,1757876936717,373.115659,0.0002012,2]
[385488411,1757876940480,1982.30206237,0.000199,2]
[385488412,1757876960216,373.115659,0.0002012,2]
[385488413,1757876983109,373.115659,0.0002012,2]
[385488414,1757877006586,373.115659,0.0002012,2]
[385488415,1757877028889,373.115659,0.0002012,2]
[385488448,1757877032199,-197.5047219,0.00020335,2]
[385488449,1757877032208,-1982.30206211,0.00021149,2]
[385488450,1757877032218,-1511.05759477,0.00021227,2]
[385488451,1757877032227,-241.6775979,0.00021227,2]
[385488452,1757877032236,-300.0,0.00021311,2]
[385488453,1757877032254,-188.9966675,0.00021312,2]
[385488454,1757877032265,-3823.51271888,0.00021312,2]
[385488455,1757877032279,-202.20607097,0.00021322,2]
[385488456,1757877032305,-500.0,0.00021326,2]
[385488457,1757877032317,-153.21409498,0.00021326,2]
[385488458,1757877032327,-151.0,0.00021327,2]
[385488459,1757877032336,-255.01325048,0.00021327,2]
[385488460,1757877032345,-151.0,0.00021327,2]
[385488461,1757877032355,-154.01790939,0.00021327,2]
[385488462,1757877032364,-162.380719,0.00021327,2]
[385488463,1757877032373,-250.0,0.00021327,2]
[385488464,1757877032382,-151.0,0.00021327,2]
[385488465,1757877032392,-250.0,0.00021327,2]
[385488466,1757877032400,-151.0,0.00021327,2]
[385488467,1757877032409,-250.0,0.00021327,2]
[385488468,1757877032419,-151.0,0.00021327,2]
[385488469,1757877032428,-7195.7435654,0.00021327,2]
[385488470,1757877032437,-250.0,0.00021327,2]
[385488472,1757877032446,-151.0,0.00021327,2]
[385488474,1757877032455,-250.0,0.00021327,2]
[385488476,1757877032465,-250.0,0.00021327,2]
[385488478,1757877032475,-250.0,0.00021327,2]
[385488480,1757877032484,-250.0,0.00021327,2]
[385488482,1757877032494,-250.0,0.00021327,2]
[385488484,1757877032504,-308.3926338,0.00021327,2]
[385488486,1757877032513,-202.50353211,0.00021327,2]
[385488488,1757877032521,-1000.0,0.00021327,2]
[385488490,1757877032530,-1000.0,0.00021327,2]
[385488492,1757877032540,-1000.0,0.00021327,2]
[385488494,1757877032552,-1000.0,0.00021327,2]
[385488496,1757877032561,-1000.0,0.00021327,2]
[385488498,1757877032570,-1000.0,0.00021327,2]
[385488500,1757877032579,-1000.0,0.00021327,2]
[385488502,1757877032588,-1000.0,0.00021327,2]
[385488504,1757877032598,-1000.0,0.00021327,2]
[385488506,1757877032608,-1000.0,0.00021327,2]
[385488507,1757877032618,-1000.0,0.00021327,2]
[385488508,1757877032630,-1000.0,0.00021327,2]
[385488509,1757877032640,-1000.0,0.00021327,2]
[385488511,1757877032649,-1000.0,0.00021327,2]
[385488512,1757877032659,-1000.0,0.00021327,2]
[385488514,1757877032669,-1000.0,0.00021327,2]
[385488516,1757877032678,-1000.0,0.00021327,2]
[385488518,1757877032688,-423.88,0.00021328,10]
[385488520,1757877032696,-1368.69,0.0002133,3]
[385488522,1757877032705,-799.49,0.0002133,3]
[385488524,1757877032715,-399.75,0.0002133,3]
[385488526,1757877032725,-199.87,0.0002133,3]
[385488528,1757877032734,-599.64,0.0002133,3]
[385488530,1757877032744,-500.0,0.00021338,2]
[385488532,1757877032754,-21241.44928517,0.0002134,2]
[385488535,1757877032766,-494.85788473,0.0002134,2]
[385488914,1757877038075,-2666.06323457,0.00021321,2]
[385488915,1757877038128,-516.59118003,0.00021321,2]
[385488916,1757877038182,-354.3381997,0.00021321,2]
[385488917,1757877038195,-46463.0073857,0.00021321,2]
[385488918,1757877038204,-500.0,0.00021321,2]
[385488919,1757877038214,-500.0,0.00021321,2]
[385488920,1757877038223,-500.0,0.00021321,2]
[385488921,1757877038232,-504.52913308,0.00021321,2]
[385488922,1757877038242,-500.0,0.00021321,2]
[385488923,1757877038251,-500.0,0.00021321,2]
[385488924,1757877038260,-505.63942052,0.00021321,2]
[385488925,1757877038269,-500.0,0.00021321,2]
[385488926,1757877038279,-500.0,0.00021321,2]
[385488927,1757877038288,-500.0,0.00021321,2]
[385488928,1757877038297,-500.0,0.00021321,2]
[385488929,1757877038306,-500.0,0.00021321,2]
[385488930,1757877038315,-500.0,0.00021321,2]
[385488931,1757877038324,-500.0,0.00021321,2]
[385488932,1757877038334,-500.0,0.00021321,2]
[385488933,1757877038342,-500.0,0.00021321,2]
[385488934,1757877038351,-500.0,0.00021321,2]
[385488935,1757877038361,-500.0,0.00021321,2]
[385488936,1757877038370,-500.0,0.00021321,2]
[385488937,1757877038379,-500.0,0.00021321,2]
[385488938,1757877038388,-500.0,0.00021321,2]
[385488939,1757877038399,-500.0,0.00021321,2]
[385488940,1757877038408,-500.0,0.00021321,2]
[385488941,1757877038417,-500.0,0.00021321,2]
[385488942,1757877038427,-500.0,0.00021321,2]
[385488943,1757877038437,-500.0,0.00021321,2]
[385488944,1757877038447,-500.0,0.00021321,2]
[385488945,1757877038456,-500.0,0.00021321,2]
[385488946,1757877038466,-307.4966713,0.00021321,2]
[385488947,1757877038475,-500.0,0.00021321,2]
[385488948,1757877038486,-500.0,0.00021321,2]
[385488949,1757877038495,-500.0,0.00021321,2]
[385488950,1757877038505,-500.0,0.00021321,2]
[385488951,1757877038514,-500.0,0.00021321,2]
[385488952,1757877038523,-500.0,0.00021321,2]
[385488953,1757877038532,-502.9531462,0.00021321,2]
[385488954,1757877038542,-500.0,0.00021321,2]
[385488955,1757877038553,-500.0,0.00021321,2]
[385488956,1757877038563,-500.0,0.00021321,2]
[385488957,1757877038574,-292722.16889691,0.0002134,2]
[385488958,1757877038583,-241.67759789,0.00021367,2]
[385488959,1757877038594,-241.67759789,0.00021506,2]
[385488960,1757877038605,-188.99666748,0.00021606,2]
[385488961,1757877038615,-666.0,0.00021652,2]
[385488962,1757877038625,-666.0,0.00021658,2]
[385488963,1757877038635,-666.0,0.00021723,2]
[385488964,1757877038646,-300.0,0.00021766,20]
[385488965,1757877038655,-300.0,0.00021766,20]
[385488966,1757877038665,-300.0,0.00021766,20]
[385488967,1757877038674,-300.0,0.00021766,20]
[385488968,1757877038685,-300.0,0.00021766,20]
[385488969,1757877038695,-300.0,0.00021766,20]
[385488970,1757877038704,-300.0,0.00021766,20]
[385488971,1757877038714,-300.0,0.00021766,20]
[385488972,1757877038725,-300.0,0.00021766,20]
[385488973,1757877038734,-300.0,0.00021766,20]
[385488974,1757877038744,-300.0,0.00021766,20]
[385488975,1757877038753,-300.0,0.00021766,20]
[385488976,1757877038763,-300.0,0.00021766,20]
[385488977,1757877038773,-300.0,0.00021766,20]
[385488978,1757877038783,-300.0,0.00021766,20]
[385488979,1757877038793,-600.0,0.00021766,20]
[385488980,1757877038805,-160.0,0.00021845,2]
[385488981,1757877038816,-233.1999649,0.00021845,2]
[385488982,1757877038825,-217.77739939,0.00021845,2]
[385488983,1757877038835,-847.27885267,0.00021845,2]
[385488984,1757877038846,-160.0,0.00021845,2]
[385488985,1757877038856,-666.0,0.00021863,2]
[385488986,1757877038867,-188.99666748,0.000219,2]
[385488987,1757877038878,-666.0,0.00021914,2]
[385488988,1757877038887,-500.0,0.00021917,2]
[385488989,1757877038897,-480.0,0.00021917,2]
[385488990,1757877038907,-566.41,0.00021917,2]
[385488991,1757877038917,-291.9978694,0.00021917,2]
[385488992,1757877038926,-480.0,0.00021917,2]
[385488993,1757877038936,-480.0,0.00021917,2]
[385488994,1757877038947,-514.79,0.00021917,2]
[385488995,1757877038956,-480.0,0.00021917,2]
[385488996,1757877038966,-602.82,0.00021917,2]
[385488997,1757877038976,-480.0,0.00021917,2]
[385488998,1757877038986,-1158.34,0.00021917,2]
[385488999,1757877038996,-579.14,0.00021917,2]
[385489000,1757877039006,-480.0,0.00021917,2]
[385489001,1757877039016,-480.0,0.00021917,2]
[385489002,1757877039025,-480.0,0.00021917,2]
[385489003,1757877039035,-542.28,0.00021917,2]
[385489004,1757877039044,-684.57,0.00021917,2]
[385489005,1757877039055,-480.0,0.00021917,2]
[385489006,1757877039065,-208.96988658,0.00021917,2]
[385489007,1757877039074,-593.18,0.00021917,2]
[385489008,1757877039084,-600.47,0.00021917,2]
[385489009,1757877039095,-218.8312306,0.00021917,2]
[385489010,1757877039105,-480.4,0.00021917,2]
[385489011,1757877039115,-480.0,0.00021917,2]
[385489012,1757877039125,-738.38,0.00021917,2]
[385489013,1757877039135,-1279.6,0.00021917,2]
[385489014,1757877039146,-480.0,0.00021917,2]
[385489015,1757877039157,-520.43,0.00021917,2]
[385489016,1757877039167,-480.0,0.00021917,2]
[385489017,1757877039176,-480.0,0.00021917,2]
[385489018,1757877039187,-480.0,0.00021917,2]
[385489019,1757877039197,-480.0,0.00021917,2]
[385489020,1757877039208,-654.7,0.00021917,2]
[385489021,1757877039217,-480.0,0.00021917,2]
[385489022,1757877039227,-665.86,0.00021917,2]
[385489023,1757877039237,-480.0,0.00021917,2]
[385489024,1757877039246,-480.0,0.00021917,2]
[385489025,1757877039255,-480.0,0.00021917,2]
[385489026,1757877039266,-858.02,0.00021917,2]
[385489027,1757877039276,-480.0,0.00021917,2]
[385489028,1757877039286,-632.83,0.00021917,2]
[385489029,1757877039296,-837.8,0.00021917,2]
[385489030,1757877039306,-480.0,0.00021917,2]
[385489031,1757877039316,-480.0,0.00021917,2]
[385489032,1757877039326,-480.0,0.00021917,2]
[385489033,1757877039337,-480.0,0.00021917,2]
[385489034,1757877039347,-814.82,0.00021917,2]
[385489035,1757877039359,-480.0,0.00021917,2]
[385489036,1757877039368,-480.0,0.00021917,2]
[385489037,1757877039379,-480.0,0.00021917,2]
[385489038,1757877039389,-567.42,0.00021917,2]
[385489039,1757877039400,-480.0,0.00021917,2]
[385489040,1757877039410,-546.0,0.00021917,2]
[385489041,1757877039420,-480.0,0.00021917,2]
[385489042,1757877039431,-480.0,0.00021917,2]
[385489043,1757877039442,-480.0,0.00021917,2]
[385489044,1757877039452,-480.0,0.00021917,2]
[385489045,1757877039463,-480.0,0.00021917,2]
[385489046,1757877039472,-300.0,0.00021917,2]
[385489047,1757877039482,-2019.93,0.00021917,2]
[385489048,1757877039492,-855.15,0.00021917,2]
[385489049,1757877039502,-480.0,0.00021917,2]
[385489050,1757877039512,-732.55,0.00021917,2]
[385489051,1757877039521,-2689.79,0.00021917,2]
[385489052,1757877039532,-2800.76,0.00021917,2]
[385489053,1757877039544,-480.0,0.00021917,2]
[385489054,1757877039559,-16167.6,0.00021917,2]
[385489055,1757877039569,-2168.23,0.00021917,2]
[385489056,1757877039578,-480.0,0.00021917,2]
[385489057,1757877039588,-622.19,0.00021917,2]
[385489058,1757877039599,-866.6,0.00021917,2]